Cogmind - Beta 10.2 *** ADVENTURER MODE // 2021.04.04 @ 16:33:55 Player: RomanTheEvil Result: Self-destructed Performance ------------- Evolutions (1) 500 Regions Visited (2) 400 Robots Destroyed (13) 65 Value Destroyed (394) 394 Prototype IDs (3) 60 Alien Tech Used (0) 0 Bonus (0) 0 TOTAL SCORE: 1419 Bonus ------- None Cogmind --------- Core Integrity 308/400 Matter 300/300 Energy 9/100 System Corruption 0% Temperature Cool (2) Movement Flying (40) Location -9/Materials Parts ------- > --- POWER (1) -------- (None) > --- PROPULSION (4) --- Flight Unit > --- UTILITY (2) ------ Small Storage Unit > --- WEAPON (2) ------- (None) > --- INVENTORY (6) ---- Ion Engine Armored Wheel Armored Wheel Armored Wheel Armored Wheel Beam Rifle Peak State ------------ > --- POWER ------------ Light Nuclear Core > --- PROPULSION ------- Armored Wheel Armored Wheel Armored Wheel Armored Wheel > --- UTILITY ---------- Small Storage Unit Sensor Array > --- WEAPON ----------- Heavy Assault Rifle Mace > --- INVENTORY -------- Ion Engine Flight Unit Flight Unit Heat Sink [Rating: 17] Favorites ----------- Power Light Nuclear Core Engine Ion Engine Power Core Light Nuclear Core Propulsion Armored Wheel Leg Aluminum Leg Wheel Armored Wheel Flight Unit Flight Unit Utility Small Storage Unit Device Sensor Array Storage Small Storage Unit Weapon EM Pulse Gun Energy Gun EM Pulse Gun Ballistic Gun Heavy Assault Rifle Impact Weapon Mace Build | -11 -10 -9 ------- Run | Scr Mat Mat Slots Evolved 2 | . . 2 Power . | . . . Propulsion 2 | . . 2 Utility . | . . . Weapon . | . . . Parts Attached 26 | 6 7 13 Power 4 | 1 1 2 Engine 2 | 1 . 1 Core 2 | . 1 1 Reactor . | . . . Propulsion 14 | 2 4 8 Treads . | . . . Leg 2 | 2 . . Wheel 7 | . 4 3 Hover . | . . . Flight 5 | . . 5 Utility 3 | 1 2 . Device 2 | . 2 . Storage 1 | 1 . . Processor . | . . . Hackware . | . . . Protection . | . . . Artifact . | . . . Weapon 5 | 2 . 3 Energy Gun 3 | 2 . 1 Energy Cannon . | . . . Ballistic Gun 1 | . . 1 Ballistic Cannon . | . . . Launcher . | . . . Special Weapon . | . . . Impact Weapon 1 | . . 1 Slashing Weapon . | . . . Piercing Weapon . | . . . Special Melee Weapon . | . . . Unidentified Prototypes . | . . . Parts Lost 2 | . . 2 Power 1 | . . 1 Propulsion . | . . . Utility 1 | . . 1 Weapon . | . . . Highest Loss Streak 1 | . . 1 Average Slot Usage (%) 82 | . 81 82 Engine 3 | . 4 1 Core 9 | . 9 8 Leg 6 | . 10 . Wheel 21 | . 16 27 Flight 6 | . . 15 Device 11 | . 13 9 Storage 12 | . 14 11 Energy Gun 7 | . 12 . Ballistic Gun 1 | . . 3 Impact Weapon 2 | . . 5 Naked Turns . | . . . Heaviest Build 16 | 13 14 16 Greatest Support 48 | 20 24 48 Greatest Overweight (x) 1 | 1 1 1 Average Overweight (x) . | . . . Largest Inventory Capacity 6 | 6 6 6 Average Capacity 5 | 5 6 6 Most Carried 6 | 4 6 6 Average Carried 3 | . 2 4 Final Capacity 6 | 6 6 6 Final Carried 6 | . 4 6 Class Distribution -------------------- 89% | Mutant 10% | Scavenger-Mutant Dominant Class ---------------- Mutant | -10/Materials Mutant | -9/Materials Resources | -11 -10 -9 ----------- Run | Scr Mat Mat Matter Collected 488 | 231 77 180 Remotely . | . . . Salvage Created 512 | . 292 220 Parts 30 | . 17 13 Haulers Intercepted . | . . . Recyclers Shooed . | . . . Parts Field Recycled . | . . . Retrieved Matter . | . . . Parts Self-Destructed . | . . . Prevented . | . . . Kills | -11 -10 -9 ------- Run | Scr Mat Mat Combat Hostiles Destroyed 11 | . 7 4 Melee 3 | . . 3 Guns 7 | . 6 1 AOE 1 | . 1 . Classes Destroyed 5 | . 3 2 Watcher 2 | . 2 . Swarmer 3 | . 3 . Grunt 5 | . 4 1 Brawler 1 | . . 1 Sentry 2 | . . 2 Best Kill Streak 3 | . 3 2 Combat Bots Only 3 | . 3 2 Max Kills in Single Turn 2 | . 2 1 Gunslinging 1 | . 1 . Exploded 1 | . 1 . Melee 1 | . . 1 Uniques/NPCs Destroyed . | . . . Combat | -11 -10 -9 -------- Run | Scr Mat Mat Damage Taken 553 | . 104 449 Core 100 | . 8 92 Absorbed by Shields . | . . . Core Remaining (%) 98 | 100 96 . Volleys Fired 31 | . 20 11 Largest 2 | . 2 1 Hottest 80 | . 80 23 Shots Fired 51 | . 40 11 Gun 51 | . 40 11 Cannon . | . . . Launcher . | . . . Special . | . . . Kinetic 11 | . . 11 Thermal . | . . . Explosive . | . . . Electromagnetic 40 | . 40 . Robot Hit Streak 10 | . 9 10 Robot Miss Streak 2 | . 2 1 Penetration Max . | . . . Secondary Targets 1 | . 1 . Max Gunslinging Chain 1 | . 1 . Shots Hit Robots 52 | . 28 24 Core Hits 19 | . 13 6 Critical Hits . | . . . Critical Kills . | . . . Critical Parts Destroyed . | . . . Melee Attacks 14 | . . 14 Impact 14 | . . 14 Slashing . | . . . Piercing . | . . . Sneak Attacks . | . . . Combat Hostiles . | . . . Follow-up Attacks . | . . . Damage Inflicted 924 | . 498 426 Guns 547 | . 398 149 Cannons . | . . . Explosions 100 | . 100 . Melee 277 | . . 277 Ramming . | . . . Kinetic 149 | . . 149 Thermal 100 | . 100 . Explosive . | . . . Electromagnetic 398 | . 398 . Impact 277 | . . 277 Slashing . | . . . Piercing . | . . . Highest Corruption . | . . . Average Corruption . | . . . Corruption Purged . | . . . Overload Shots . | . . . Overflow Damage . | . . . Projectiles . | . . . Explosions . | . . . Melee . | . . . Knockbacks . | . . . Impact . | . . . Kinetic . | . . . Secondary . | . . . Self-Inflicted Damage . | . . . Shots . | . . . Rammed . | . . . Targets Rammed . | . . . Kicked . | . . . Crushed . | . . . Highest Temperature 162 | . 162 6 Average Temperature 54 | . 56 4 Received Heat Transfer 252 | . 45 207 Siege Activations . | . . . Robots Corrupted . | . . . Combat Hostiles . | . . . Parts Fried 1 | . 1 . Impact Corruptions . | . . . Robots Melted . | . . . Combat Hostiles . | . . . Parts Melted . | . . . Heat Transferred 150 | . 150 . Parts Sabotaged . | . . . Parts Stolen . | . . . Parts Stripped . | . . . Power Chain Reactions 2 | . 2 . Missiles Intercepted . | . . . Alert | -11 -10 -9 ------- Run | Scr Mat Mat Peak Influence 363 | . 363 262 Initial 58 | . . 58 Average 206 | . 251 165 Maximum Alert Level 1 | . 1 1 Low Security (%) 45 | 100 30 59 Level 1 54 | . 69 40 Level 2 . | . . . Level 3 . | . . . Level 4 . | . . . Level 5 . | . . . High Security . | . . . Max Security . | . . . Squads Dispatched 2 | . 1 1 Investigation 2 | . 1 1 Extermination . | . . . Reinforcement . | . . . Assault . | . . . Garrison . | . . . Intercept . | . . . Construction Impeded . | . . . Haulers Reinforced . | . . . Stealth | -11 -10 -9 --------- Run | Scr Mat Mat Distress Signals 1 | . 1 . Communications Jammed . | . . . Distress Signals . | . . . Times Spotted 38 | . 12 26 Peak Tracking Total 15 | . 3 15 Tactical Retreats 4 | . 1 3 Traps | -11 -10 -9 ------- Run | Scr Mat Mat Traps Triggered 3 | . 3 . Indirectly . | . . . Trap Hack Attempts . | . . . Triggered . | . . . Disarmed . | . . . Reprogrammed 8 | . 8 . Reused . | . . . Traps Extracted . | . . . Installed . | . . . Triggered . | . . . Machines | -11 -10 -9 ---------- Run | Scr Mat Mat Machines Disabled 1 | . 1 . Max in Single Turn 1 | . 1 . Machines Sabotaged . | . . . Garrisons Compromised . | . . . Overloaded Fab Kills . | . . . Fab Network Shutdowns . | . . . Hacking | -11 -10 -9 --------- Run | Scr Mat Mat Machines Accessed 8 | . 5 3 Terminals 7 | . 5 2 Fabricators . | . . . Repair Stations 1 | . . 1 Recycling Units . | . . . Scanalyzers . | . . . Garrison Access . | . . . Total Hacks 30 | . 17 13 Successful 17 | . 9 8 Failed 13 | . 8 5 Catastrophic 1 | . 1 . Database Lockouts . | . . . Manual 13 | . 10 3 Terminals 25 | . 17 8 Fabricators . | . . . Repair Stations 5 | . . 5 Recycling Units . | . . . Scanalyzers . | . . . Garrison Access . | . . . Terminal Hacks 11 | . 7 4 Prototype ID Bank 2 | . 2 . Level Access Points 1 | . 1 . Terminal Index 1 | . 1 . Alert Level 1 | . . 1 Unreport Threat 1 | . . 1 Locate Traps 1 | . 1 . Reprogram Traps 2 | . 2 . Patrol Status 1 | . . 1 Reinforcement Status 1 | . . 1 Fabricator Hacks . | . . . Repair Station Hacks 4 | . . 4 Scan Component 2 | . . 2 Repair 2 | . . 2 Recycling Unit Hacks . | . . . Scanalyzer . | . . . Garrison Access Hacks . | . . . Unauthorized Hacks 2 | . 2 . Terminals 2 | . 2 . Detonate 1 | . 1 . Operators 1 | . 1 . Fabricators . | . . . Repair Stations . | . . . Recycling Units . | . . . Scanalyzers . | . . . Garrison Access . | . . . Data Cores Recovered . | . . . Used . | . . . Hacking Detections 8 | . 5 3 Full Trace Events 4 | . 2 2 Feedback Events . | . . . Feedback Blocked . | . . . Robot Schematics Acquired . | . . . Robots Built . | . . . Matter . | . . . Time . | . . . Total Robot Build Rating . | . . . Part Schematics Acquired . | . . . Parts Built . | . . . Matter . | . . . Time . | . . . Total Part Build Rating . | . . . Parts Repaired 2 | . . 2 Time 35 | . . 35 Parts Recycled . | . . . Recycled Matter . | . . . Retrieved Matter . | . . . Retrieved Components . | . . . Parts Scanalyzed . | . . . Part Schematics Acquired . | . . . Parts Damaged . | . . . Bothacking | -11 -10 -9 ------------ Run | Scr Mat Mat Used RIF Installer . | . . . Robots Hacked . | . . . Non-combat . | . . . Combat . | . . . Robot Hacks Applied . | . . . Relay Couplers Released . | . . . Robots Rewired . | . . . Allies Hacked . | . . . Hacks Repelled . | . . . Allies | -11 -10 -9 -------- Run | Scr Mat Mat Total Allies . | . . . Largest Group . | . . . Highest-Rated Group . | . . . Highest-Rated Ally . | . . . Total Orders . | . . . Ally Attacks . | . . . Total Damage . | . . . Kills . | . . . Allies Corrupted . | . . . Allies Melted . | . . . Intel | -11 -10 -9 ------- Run | Scr Mat Mat Robot Analysis Total . | . . . Derelict Logs Recovered . | . . . Drone Launches . | . . . Drone Recoveries . | . . . Exploration | -11 -10 -9 ------------- Run | Scr Mat Mat Turns Passed 782 | 41 446 295 Spaces Moved 745 | 29 368 348 Core 14 | 14 . . Treads . | . . . Legs 91 | 15 76 . Wheels 374 | . 292 82 Hover . | . . . Flight 266 | . . 266 Fastest Speed 31 | 50 90 31 Average Speed 73 | 103 96 46 Slowest Speed 150 | 120 150 119 Overloaded Moves . | . . . Propulsion Burnouts . | . . . Robots Hopped 2 | . . 2 Cave-ins Triggered . | . . . Exploration Rate (%) 32 | 4 64 28 Regions Visited 2 Branch Regions . Pre-discovered Areas . | . . . Known Exits Taken 1 | . 1 . Unknown Exits Taken 1 | 1 . . Scrap Searched . | . . . Spaces Dug . | . . . Terrain Destroyed 2 | . 2 . Melee . | . . . Projectile . | . . . AOE 2 | . 2 . Terrain Rammed . | . . . Walls Destroyed . | . . . Machines Disabled . | . . . Actions | -11 -10 -9 --------- Run | Scr Mat Mat Total 907 | 40 420 447 Wait 43 | . 5 38 Move 740 | 28 367 345 Hop 1 | . . 1 Pick Up 34 | 6 14 14 Fast Attach . | . . . Attach 15 | 6 4 5 Detach . | . . . Swap 11 | . 3 8 Drop 18 | . 7 11 Fire 31 | . 20 11 Melee 14 | . . 14 Ram . | . . . Kick . | . . . Crush . | . . . Escape Stasis . | . . . Rewire . | . . . Trap . | . . . Miscellaneous . | . . . Route ------- -11/Scrapyard -10/Materials (discovered 4 exits: *Mat x3 / [*Min]) -9/Materials History --------- Turn | Location | Event 16 | -11/Scrapyard | Discovered new exit (range 15) 42 | -11/Scrapyard | Entered Materials 69 | -10/Materials | Discovered new exit (range 16) 180 | -10/Materials | Discovered new exit (range 15) 289 | -10/Materials | Discovered new exit (range 3) 300 | -10/Materials | Build established: Mutant 383 | -10/Materials | Discovered new exit (range 14) 428 | -10/Materials | Identified exit to Materials 488 | -10/Materials | Entered another Materials area 488 | -9/Materials | Evolved 2 slots: Propulsion x2 605 | -9/Materials | Repaired Lgt. Nuclear Core 624 | -9/Materials | Repaired Arm. Wheel 783 | -9/Materials | Self-destructed Last Messages --------------- 00743_ K-01 Serf collects debris. 00743_ Acquired 55 matter. 00747_ K-01 Serf collects debris. 00748_ Connecting with Terminal... >>Enumerate(Reinforcements) Retrieving latest reported positions... No active reinforcement squads found. >>Enumerate(Patrols) Retrieving latest reported positions... Found 4 active patrol squads. Downloaded coordinate data. 00751_ S-10 Pest destroyed. 00763_ Acquired Arm. Wheel. 00765_ Dropped Arm. Wheel. 00765_ Acquired Arm. Wheel. 00766_ Dropped Arm. Wheel. 00767_ Acquired Arm. Wheel. 00768_ Lgt. Nuclear Core destroyed. 00779_ Dropped VTOL Module. 00779_ Dropped Flight Unit. Map ----- +----------------------------------------------------+ | ?????????????????????????????????????? | | ?????????????????????????????#???????? | | ????????????????????????????? ???????? | | ????????????????????????????? ???????? | | ????????????????????????????? ???????? | | ????????????????????????????? ???????? | | ????????????????????????????? ###?##?? | | ????????????????????????????? ? #?? | | ???????????????????###+##???? #?? | | ???????????????????# ?????# ??? | | ???????????????????# ??????# ???? | | ? ???????????????# ######## ???? | | ? #?????????????# # # ????? | | ? #######+####### + # ?????? | | ? # # #?????? | | ? # # #?????? | | ? ???## ^""" / = # + #?????? | | ?# #????# "T" / = # # #?????? | | ?# #????# ####+### ##????? | | ?# #????# ####?? | | ? #????# !!##? | | ?# ######/#########+######### !#? | | ?# ## #????????# # !#? | | ?# ## #????????# + !#? | | ## ## """ #????????# # !#? | | ## """"" #????????#@ # !!##? | | / """"" #????????# # ####?? | | ## ## """"" #????????# =# #????? | | ?# ## """ #????????# ==+ #????? | | ?# ## = #????????# ##/####?? | | ?# ############????????# # #? | | ?# #???????????????????###### #? | | ?# #????????????????????????#! #? | | ?# #????????????????????????# #? | | ?# +????????????????????????# #? | | ?####????????????????????????# #? | | ?????????????????????????????########? | | ?????????????????????????????????????? | | ?????????????????????????????????????? | | ?????????????????????????????????????? | | ?????????????????????????????????????? | | ?????????????????????????????????????? | | ?????????????????????????????????????? | | ?????????????????????????????????????? | | ?????????????????????????????????????? | | ?????????????????????????????????????? | | ?????????????????????????????????????? | | ?????????????????????????????????????? | | ?????????????????????????????????????? | | ?????????????????????????????????????? | +----------------------------------------------------+ Best States ------------- Heat Dissipation 28 Energy Generation 14 Energy Capacity 250 Matter Stores 300 Matter Capacity 300 Sight Range 16 Robot Scan Range 10 Terrain Scan Density 10 Resistance: KI 20 Resistance: TH 20 Resistance: EX 20 Resistance: EM 20 Resistance: I 20 Resistance: S 20 Resistance: P 20 Evasion (%) 63 Offensive Hacking 10 Item Schematics ----------------- None Robot Schematics ------------------ None Fabricated ------------ Nothing Alien Tech Used ----------------- None Achievements -------------- None Challenges ------------ None Game ------ Seed AlertAssemblyConverter Manual? 0 Play Time 00:23:16 Cumulative 10.5 hours Start 2021.04.04 @ 16:11:14 End 2021.04.04 @ 16:33:55 Sessions 1 Manual Loads 0 Difficulty Adventurer Special Mode None Game No. 9 Rogue 0 Adventurer 9 Explorer 0 Win Type - Total 0 Types 0/0/0/0/0/0/0/0/0 Lore% 24 Gallery% 12 Achievement% 15 Wizard Run 0 Options --------- ASCII 0 Keyboard 0 Movement Mouse Keybinds 0 Fullscreen 1 Font 16/SmallcapsGlow Map View 76x50 Tactical HUD 1 Map Filters NONE Filters NONE Steam 1 RUN: c8d59f7c-6fa1-42ea-8fa2-538f36c5669e